fUST/lending_fUST_20241102
["ID","MTS","AMOUNT","RATE_DAILY","PERIOD"]
[341178166,1730542234288,-500.0,0.0003041,4]
[341178167,1730542234298,-500.0,0.0003041,4]
[341178168,1730542234307,-509.03965714,0.0003041,4]
[341178169,1730542234317,-500.0,0.0003041,4]
[341178170,1730542234327,-163.86516353,0.0003041,4]
[341178171,1730542234337,-500.0,0.0003041,4]
[341178172,1730542234346,-315.25,0.0003041,4]
[341178173,1730542234356,-488.84,0.0003041,4]
[341178174,1730542234366,-500.0,0.0003041,4]
[341178175,1730542234375,-500.0,0.0003041,4]
[341178176,1730542234385,-500.0,0.0003041,4]
[341178177,1730542234395,-247.36130698,0.0003041,4]
[341178178,1730542234405,-500.0,0.0003041,4]
[341178179,1730542234414,-500.0,0.0003041,4]
[341178180,1730542234424,-500.0,0.0003041,4]
[341178181,1730542234434,-500.0,0.0003041,4]
[341178182,1730542234444,-500.0,0.0003041,4]
[341178183,1730542234455,-500.0,0.0003041,4]
[341178184,1730542234464,-500.0,0.0003041,4]
[341178185,1730542234474,-500.0,0.0003041,4]
[341178186,1730542234484,-500.0,0.0003041,4]
[341178187,1730542234494,-500.0,0.0003041,4]
[341178188,1730542234504,-500.0,0.0003041,4]
[341178189,1730542234513,-500.0,0.0003041,4]
[341178190,1730542234523,-564.69,0.0003041,4]
[341178191,1730542234532,-500.0,0.0003041,4]
[341178192,1730542234541,-262.86782523,0.0003041,4]
[341178193,1730542234551,-500.0,0.0003041,4]
[341178194,1730542234560,-500.0,0.0003041,4]
[341178195,1730542234570,-283.05813001,0.0003041,4]
[341178196,1730542234580,-500.0,0.0003041,3]
[341178197,1730542234589,-334.90895013,0.0003041,4]
[341178198,1730542234598,-500.0,0.0003041,4]
[341178199,1730542234608,-500.0,0.0003041,4]
[341178200,1730542234617,-500.0,0.0003041,4]
[341178201,1730542234627,-500.0,0.0003041,4]
[341178202,1730542234637,-500.0,0.0003041,4]
[341178203,1730542234647,-500.0,0.0003041,4]
[341178204,1730542234657,-500.0,0.00030684,4]
[341178205,1730542234670,-500.0,0.00030684,4]
[341178206,1730542234680,-500.0,0.00030684,4]
[341178207,1730542234691,-500.0,0.00030684,4]
[341178208,1730542234701,-500.0,0.00030684,4]
[341178209,1730542234712,-500.0,0.00030684,4]
[341178210,1730542234721,-500.0,0.00030684,4]
[341178211,1730542234731,-500.0,0.00030684,4]
[341178212,1730542234741,-500.0,0.00030684,4]
[341178213,1730542234750,-500.0,0.00030684,4]
[341178214,1730542234760,-500.0,0.00030684,4]
[341178215,1730542234769,-500.0,0.00030684,4]
[341178216,1730542234778,-500.0,0.00030684,4]
[341178217,1730542234788,-500.0,0.00030684,4]
[341178218,1730542234797,-466.27544332,0.00030684,4]
[341178219,1730542234807,-500.0,0.00030684,4]
[341178220,1730542234817,-500.0,0.00030684,4]
[341178221,1730542234826,-500.0,0.00030684,4]
[341178222,1730542234835,-500.0,0.00030684,4]
[341178223,1730542234845,-255.34,0.00030684,4]
[341178224,1730542234855,-500.0,0.00030684,3]
[341178225,1730542234864,-500.0,0.00030684,4]
[341178226,1730542234874,-500.0,0.00030684,4]
[341178227,1730542234884,-203.19705987,0.00030684,4]
[341178228,1730542234894,-500.0,0.00030684,4]
[341178229,1730542235008,-500.0,0.00030684,4]
[341178230,1730542235021,-500.0,0.00030958,4]
[341178231,1730542235033,-442.98769022,0.00030958,4]
[341178232,1730542235043,-500.0,0.00030958,4]
[341178233,1730542235053,-500.0,0.00030958,4]
[341178234,1730542235063,-500.0,0.00030958,4]
[341178235,1730542235072,-500.0,0.00030958,4]
[341178236,1730542235083,-500.0,0.00030958,4]
[341178237,1730542235094,-500.0,0.00030958,4]
[341178238,1730542235103,-500.0,0.00030958,4]
[341178239,1730542235112,-500.0,0.00030958,4]
[341178240,1730542235121,-500.0,0.00030958,4]
[341178241,1730542235130,-500.0,0.00030958,4]
[341178242,1730542235139,-500.0,0.00030958,4]
[341178243,1730542235148,-500.0,0.00030958,4]
[341178244,1730542235157,-500.0,0.00030958,4]
[341178245,1730542235166,-500.0,0.00030958,3]
[341178246,1730542235175,-500.0,0.00030958,4]
[341178247,1730542235183,-646.25,0.00030958,4]
[341178248,1730542235193,-500.0,0.00030958,4]
[341178249,1730542235202,-500.0,0.00030958,4]
[341178250,1730542235214,-2067.94462548,0.00031088,2]
[341178251,1730542235223,-500.0,0.00031232,4]
[341178252,1730542235234,-622.95,0.00031232,4]
[341178253,1730542235243,-500.0,0.00031232,4]
[341178254,1730542235252,-500.0,0.00031232,4]
[341178255,1730542235261,-500.0,0.00031232,4]
[341178256,1730542235270,-500.0,0.00031232,4]
[341178257,1730542235279,-478.24912638,0.00031232,4]
[341178258,1730542235288,-500.0,0.00031232,4]
[341178259,1730542235297,-500.0,0.00031232,4]
[341178260,1730542235306,-500.0,0.00031232,3]
[341178261,1730542235315,-500.0,0.00031232,4]
[341178262,1730542235324,-500.0,0.00031232,4]
[341178263,1730542235333,-500.0,0.00031232,4]
[341178264,1730542235343,-500.0,0.00031506,4]
[341178265,1730542235352,-342.91,0.00031506,4]
[341178266,1730542235362,-500.0,0.00031506,4]
[341178267,1730542235371,-500.0,0.00031506,4]
[341178268,1730542235381,-233.65,0.00031506,4]
[341178269,1730542235390,-500.0,0.00031506,4]
[341178270,1730542235400,-500.0,0.00031506,4]
[341178271,1730542235409,-500.0,0.00031506,3]
[341178272,1730542235419,-500.0,0.00031506,4]
[341178273,1730542235429,-538.99,0.00031506,4]
[341178274,1730542235438,-500.0,0.00031506,4]
[341178275,1730542235447,-500.0,0.0003178,4]
[341178276,1730542235458,-316.74,0.0003178,4]
[341178277,1730542235467,-576.67,0.0003178,4]
[341178278,1730542235477,-500.0,0.0003178,4]
[341178279,1730542235486,-193.81717566,0.0003178,3]
[341178280,1730542239472,-500.0,0.00030136,4]
[341178281,1730542239485,-500.0,0.00030568,5]
[341178282,1730542239495,-500.0,0.00030684,4]
[341178283,1730542239504,-500.0,0.00030958,4]
[341178284,1730542239513,-559.43,0.00031232,4]
[341178285,1730542239523,-306.18282434,0.0003178,3]
[341178286,1730542239534,-500.0,0.0003178,4]
[341178287,1730542239544,-500.0,0.0003178,4]
[341178288,1730542239554,-1000.0,0.00031938,5]
[341178289,1730542239564,-500.0,0.00032054,4]
[341178290,1730542239576,-500.0,0.00032054,4]
[341178291,1730542239585,-500.0,0.00032054,3]
[341178292,1730542239594,-500.0,0.00032054,4]
[341178293,1730542239604,-500.0,0.00032054,4]
[341178294,1730542239614,-2067.94462548,0.0003214,2]
[341178295,1730542239623,-500.0,0.00032328,4]
[341178296,1730542239633,-500.0,0.00032328,4]
[341178297,1730542239642,-500.0,0.00032328,3]
[341178298,1730542239651,-430.16,0.00032328,4]
[341178299,1730542239662,-500.0,0.00032328,4]
[341178300,1730542239673,-500.0,0.00032602,4]
[341178301,1730542239685,-500.0,0.00032602,4]
[341178302,1730542239697,-500.0,0.00032602,3]
[341178303,1730542239707,-500.0,0.00032602,4]
[341178304,1730542239717,-500.0,0.00032876,7]
[341178305,1730542239726,-472.9,0.00032876,4]
[341178306,1730542239736,-500.0,0.00032876,4]
[341178307,1730542239746,-500.0,0.00032876,3]
[341178308,1730542239755,-500.0,0.00032876,4]
[341178309,1730542239765,-286.58,0.0003315,4]
[341178310,1730542239774,-322.99,0.0003315,3]
[341178311,1730542239783,-500.0,0.0003315,4]
[341178312,1730542239792,-740.48761474,0.00033307,10]
[341178314,1730542241491,-84.93031805,0.00033192,2]
[341178323,1730542244198,-500.0,0.00030136,4]
[341178324,1730542244208,-500.0,0.00030136,4]
[341178326,1730542244218,-500.0,0.0003041,4]
[341178328,1730542244228,-500.0,0.00030684,4]
[341178330,1730542244237,-618.39,0.00030958,4]
[341178332,1730542244248,-1983.01430743,0.00033192,2]
[341178336,1730542244339,-3024.30475559,0.00033307,10]
[341178351,1730542246872,-77.08693389,0.0003041,4]
[341178353,1730542594852,164.73018,0.00013973,2]
[341178357,1730543132964,164.7556506,0.00013973,2]
[341178358,1730543137139,-164.73018,0.00022174,2]
[341178359,1730543137162,-189.858,0.00024235,2]
[341178360,1730543137184,-275.95706602,0.00025,3]
[341178364,1730543217089,-76.04293398,0.00025,3]
[341178365,1730543217111,-97.1055035,0.00025856,2]
[341178366,1730543328457,413.9706394,0.00022,3]
[341178367,1730543346143,-1326.5044035,0.000223,2]
[341178368,1730543346167,-241.77072217,0.00023,2]
[341178369,1730543346188,-1307.1202297,0.000245,2]
[341178370,1730543346211,-300.0,0.00024999,2]
[341178371,1730543346233,-300.0,0.00024999,2]
[341178372,1730543346253,-5047.8962671,0.00025,2]
[341178373,1730543346274,-508.90891178,0.00025,2]
[341178374,1730543346294,-10364.0,0.00025,2]
[341178375,1730543346314,-346.00340192,0.00025,2]
[341178376,1730543346336,-826.14609149,0.00025,2]
[341178377,1730543346356,-35321.85646651,0.0002509,2]
[341178378,1730543346377,-1025.459805,0.0002513,2]
[341178379,1730543346401,-1117.6508188,0.0002557,2]
[341178380,1730543346423,-804.65476433,0.00025815,2]
[341178381,1730543347132,-220.80504067,0.00025815,2]
[341178382,1730543347155,-24802.8944965,0.00025856,2]
[341178383,1730543347178,-1025.459805,0.000265,2]
[341178384,1730543347214,-1762.43898402,0.00026899,2]
[341178385,1730543347238,-500.0,0.00026998,2]
[341178386,1730543347260,-160.64229731,0.00026998,2]
[341178387,1730543347284,-500.0,0.00026998,2]
[341178388,1730543347306,-500.0,0.00026998,2]
[341178389,1730543347328,-500.0,0.00026998,2]
[341178390,1730543347351,-500.0,0.00026998,2]
[341178391,1730543347371,-500.0,0.00026998,2]
[341178392,1730543347393,-500.0,0.00026998,2]
[341178393,1730543347415,-500.0,0.00026998,2]
[341178394,1730543347436,-445.93043043,0.00026998,2]
[341178395,1730543347459,-500.0,0.00026998,2]
[341178396,1730543347484,-500.0,0.00026998,2]
[341178397,1730543347507,-500.0,0.00026998,2]
[341178398,1730543347534,-500.0,0.00026998,2]
[341178399,1730543347559,-388.44590689,0.00026998,2]
[341178400,1730543347583,-500.0,0.00026998,2]
[341178401,1730543347608,-605.61707428,0.00026998,2]
[341178402,1730543347631,-500.0,0.00026998,2]
[341178403,1730543347652,-500.0,0.00026998,2]
[341178404,1730543347674,-500.0,0.00026998,2]
[341178405,1730543347699,-208.14295182,0.00026998,2]
[341178406,1730543347721,-500.0,0.00026998,2]
[341178407,1730543347743,-500.0,0.00026998,2]
[341178408,1730543347764,-500.0,0.00026998,2]
[341178409,1730543347786,-500.0,0.00026998,2]
[341178410,1730543347808,-500.0,0.00026998,2]
[341178411,1730543347830,-500.0,0.00026998,2]
[341178412,1730543347853,-500.0,0.00026998,2]
[341178413,1730543347876,-500.0,0.00026998,2]
[341178414,1730543347897,-500.0,0.00026998,2]
[341178415,1730543347925,-500.0,0.00026998,2]
[341178416,1730543347947,-500.0,0.00026998,2]
[341178417,1730543347970,-275.5,0.00026998,2]
[341178418,1730543347991,-500.0,0.00026998,2]
[341178419,1730543348017,-500.0,0.00026998,2]
[341178420,1730543348042,-500.0,0.00026998,2]
[341178421,1730543348065,-500.0,0.00026998,2]
[341178422,1730543348090,-500.0,0.00026998,2]
[341178423,1730543348117,-500.0,0.00026998,2]
[341178424,1730543348141,-500.0,0.00026998,2]
[341178425,1730543348165,-500.0,0.00026998,2]
[341178426,1730543348190,-500.0,0.00026998,2]
[341178427,1730543348214,-500.0,0.00026998,2]
[341178428,1730543348239,-500.0,0.00026998,2]
[341178429,1730543348263,-500.0,0.00026998,2]
[341178430,1730543348285,-601.76101638,0.00026998,2]
[341178431,1730543348308,-500.0,0.00026998,2]
[341178432,1730543348333,-500.0,0.00026998,2]
[341178433,1730543348358,-500.0,0.00026998,2]
[341178434,1730543348385,-500.0,0.00026998,2]
[341178435,1730543348407,-500.0,0.00026998,2]
[341178436,1730543348430,-500.0,0.00026998,2]
[341178437,1730543348452,-500.0,0.00026998,2]
[341178438,1730543348477,-500.0,0.00026998,2]
[341178439,1730543348500,-500.0,0.00026998,2]
[341178440,1730543348524,-500.0,0.00026998,2]
[341178441,1730543348546,-189.80144998,0.00026998,2]
[341178442,1730543348570,-500.0,0.00026998,2]
[341178443,1730543348593,-500.0,0.00026998,2]
[341178444,1730543348616,-500.0,0.00026998,2]
[341178445,1730543348641,-500.0,0.00026998,2]
[341178446,1730543348663,-500.0,0.00026998,2]
[341178447,1730543348685,-500.0,0.00026998,2]
[341178448,1730543348706,-500.0,0.00026998,2]
[341178449,1730543348728,-34573.18401932,0.00027,7]
[341178450,1730543348749,-420.0,0.00027082,2]
[341178451,1730543348771,-420.0,0.00027499,2]
[341178452,1730543348791,-416.66796281,0.00027803,2]
[341178453,1730543348812,-500.0,0.00027821,2]
[341178454,1730543348835,-187.118331,0.00027903,2]
[341178455,1730543348855,-500.0,0.00028162,5]
[341178456,1730543348876,-195.052134,0.00028223,2]
[341178457,1730543348899,-1762.43898398,0.00028399,2]
[341178458,1730543348921,-635.176153,0.00028475,2]
[341178459,1730543348943,-162.208711,0.00028575,2]
[341178460,1730543348965,-162.208711,0.00028724,2]
[341178461,1730543348986,-187.118331,0.00028854,2]
[341178462,1730543349008,-162.208711,0.00028873,2]
[341178463,1730543349032,-162.208711,0.00029022,2]
[341178464,1730543349054,-652.01340979,0.00029171,2]
[341178465,1730543349076,-162.208711,0.00029171,2]
[341178466,1730543349098,-162.208711,0.0002932,2]
[341178467,1730543349120,-263.0,0.00029339,2]
[341178468,1730543349141,-416.66796279,0.00029359,2]
[341178469,1730543349163,-162.208711,0.00029469,2]
[341178470,1730543349184,-1000.0,0.00029532,5]
[341178471,1730543349207,-162.208711,0.00029617,2]
[341178472,1730543349229,-162.208711,0.00029766,2]
[341178473,1730543349249,-187.118331,0.00029805,2]
[341178474,1730543349271,-1762.43898398,0.00029899,2]
[341178475,1730543349293,-162.208711,0.00029915,2]
[341178476,1730543349314,-151.0,0.0003,120]
[341178477,1730543349336,-164.0,0.0003,2]
[341178478,1730543349357,-5069.35614387,0.0003,2]
[341178479,1730543349379,-4323.65431523,0.0003,2]
[341178480,1730543349399,-945.33547413,0.00030035,2]
[341178481,1730543349422,-162.208711,0.00030064,2]
[341178482,1730543349442,-503.85596932,0.00030136,4]
[341178483,1730543349464,-212.48681151,0.00030136,4]
[341178484,1730543371150,-500.0,0.00027821,5]
[341178485,1730543376797,18.03626416,0.00025855,2]
[341178486,1730543376821,4981.96373584,0.00025855,2]
[341178487,1730543377143,5000.0,0.00026999,2]
[341178510,1730543431869,-187.118331,0.00029665,2]
[341178511,1730543431879,-180.0,0.00030135,2]
[341178512,1730543431889,-500.0,0.00030136,4]
[341178513,1730543431898,-500.0,0.00030136,3]
[341178514,1730543431908,-317.588076,0.00030229,2]
[341178515,1730543431917,-501.57945964,0.0003034,5]
[341178516,1730543431927,-500.0,0.0003034,5]
[341178517,1730543431936,-500.0,0.0003034,5]
[341178518,1730543431946,-691.83133387,0.00030345,2]
[341178519,1730543431955,-164.73018,0.00030374,2]
[341178520,1730543431966,-164.0,0.00030411,2]
[341178521,1730543431976,-500.0,0.0003059,4]
[341178522,1730543431986,-321.61318849,0.00030591,4]
[341178523,1730543431998,-500.0,0.00030591,4]
[341178524,1730543432007,-500.0,0.00030591,4]
[341178525,1730543432017,-178.9012465,0.00030726,2]
[341178526,1730543432026,-422.91306611,0.00030865,4]
[341178527,1730543432035,-500.0,0.00030865,4]
[341178528,1730543432045,-502.51838893,0.00030895,5]
[341178529,1730543432054,-500.0,0.00030895,5]
[341178530,1730543432064,-500.0,0.00030914,5]
[341178531,1730543432073,-416.66796279,0.00030916,2]
[341178532,1730543432083,-500.0,0.00031139,4]
[341178533,1730543432093,-1762.43898398,0.00031399,2]
[341178534,1730543432102,-151.0,0.00031589,120]
[341178535,1730543432114,-164.0,0.00031644,2]
[341178536,1730543432125,-1000.0,0.000318,5]
[341178537,1730543432136,-500.0,0.0003224,5]
[341178538,1730543432148,-1000.0,0.00032265,5]
[341178539,1730543432159,-416.66796279,0.00032472,2]
[341178540,1730543432169,-1000.0,0.000328,7]
[341178541,1730543432180,-1762.43898398,0.000329,2]
[341178542,1730543432191,-151.0,0.00033178,120]
[341178543,1730543432202,-1000.0,0.000332,30]
[341178544,1730543432213,-165.0,0.00033226,2]
[341178545,1730543432223,-9000.0,0.0003327,2]
[341178546,1730543432233,-7161.75080757,0.000333,2]
[341178547,1730543432248,-1838.24919243,0.000333,2]
[341178548,1730543432259,-293.54575207,0.00033306,4]
[341178549,1730543432270,-500.0,0.00033306,4]
[341178550,1730543432280,-500.0,0.00033306,4]
[341178551,1730543432290,-500.0,0.00033306,4]
[341178552,1730543432299,-434.67560653,0.00033306,7]
[341178553,1730543432309,-4953.45562967,0.00033307,10]
[341178554,1730543432321,-500.0,0.0003358,4]
[341178555,1730543432330,-500.0,0.0003358,4]
[341178556,1730543432339,-574.06020098,0.0003358,4]
[341178557,1730543432349,-1000.0,0.0003361,5]
[341178558,1730543432358,-187.118331,0.00033709,2]
[341178559,1730543432367,-500.0,0.00033854,4]
[341178560,1730543432377,-500.0,0.00033854,4]
[341178561,1730543432387,-5305.5,0.00033972,120]
[341178562,1730543432398,-9000.0,0.00033996,2]
[341178563,1730543432411,-9000.0,0.00033997,2]
[341178564,1730543432421,-9000.0,0.00033998,2]
[341178565,1730543432432,-500.0,0.00033998,7]
[341178566,1730543432443,-151.07,0.00033999,2]
[341178567,1730543432454,-9000.0,0.00033999,2]
[341178568,1730543432464,-1000.0,0.00034,120]
[341178569,1730543432474,-24373.84925716,0.00034,2]
[341178606,1730543440010,-289.08455738,0.00033971,7]
[341178607,1730543440020,-207.28071577,0.00033971,7]
[341178611,1730543440105,-292.71928423,0.00033971,7]
[341178613,1730543440117,-365.62231977,0.00033971,7]
[341178640,1730543443181,-19.23871527,0.00033971,7]
[341178641,1730543443235,-70.06058289,0.00033971,7]
[341178643,1730543546990,162.0,0.00025,2]
[341178644,1730543550220,190.578,0.00023924,2]
[341178646,1730543619378,164.862288,0.00013973,2]
[341178648,1730544225403,326.9955125,0.0001,2]
[341178649,1730544332158,-164.862288,0.00022174,2]
[341178650,1730544332180,-166.666666,0.00027479,2]
[341178651,1730544332202,-300.0,0.000277,2]
[341178652,1730544332225,-300.0,0.000277,2]
[341178653,1730544332247,-11932.16759941,0.00027701,2]
[341178654,1730544344117,-318.831391,0.00027943,61]
[341178655,1730544344147,-151.0,0.0003,120]
[341178656,1730544344178,-151.0,0.00031589,120]
[341178657,1730544344204,-151.0,0.00033178,120]
[341178658,1730544344230,-5084.44,0.00033972,120]
[341178659,1730544344255,-151.0,0.00034767,120]
[341178660,1730544344281,-1993992.728609,0.000349,120]
[341178661,1730544349506,-811339.80926282,0.000349,120]
[341178662,1730544349536,-5084.44,0.00034931,120]
[341178663,1730544349562,-40952.02618586,0.00035,30]
[341178664,1730544349587,-4090.0,0.00035,120]
[341178665,1730544349613,-89239.27276941,0.00035,30]
[341178666,1730544349639,-513.0,0.00035,30]
[341178667,1730544349665,-1000.0,0.00035,120]
[341178668,1730544349694,-1000.0,0.00035068,116]
[341178669,1730544349725,-1000.0,0.00035068,116]
[341178670,1730544349755,-1000.0,0.00035068,116]
[341178671,1730544349782,-1000.0,0.00035068,116]
[341178672,1730544349812,-1000.0,0.00035068,116]
[341178673,1730544349841,-1000.0,0.00035068,116]
[341178674,1730544349872,-1000.0,0.00035068,116]
[341178675,1730544349902,-1000.0,0.00035117,116]
[341178676,1730544349931,-1000.0,0.00035391,116]
[341178677,1730544349961,-150.0,0.00035394,120]
[341178678,1730544349992,-168.723,0.00035587,120]
[341178679,1730544350020,-344.31278917,0.00035616,120]
[341178680,1730544350048,-317.62176245,0.00035616,120]
[341178681,1730544350080,-2000.0,0.00035616,120]
[341178682,1730544350109,-2000.0,0.00035616,120]
[341178683,1730544350140,-2000.0,0.00035616,120]
[341178684,1730544350168,-2000.0,0.00035616,120]
[341178685,1730544350195,-2000.0,0.00035616,120]
[341178686,1730544350220,-2000.0,0.00035616,120]
[341178687,1730544350250,-2000.0,0.00035616,120]
[341178688,1730544350278,-1000.0,0.00035665,116]
[341178689,1730544350307,-5084.44,0.0003589,120]
[341178690,1730544350337,-175.2654973,0.00035939,116]
[341178691,1730544350366,-19658.78963515,0.00036,30]
[341178692,1730544350394,-45493.27748683,0.00036021,60]
[341178693,1730544350424,-151.0,0.00036356,120]
[341178694,1730544350452,-894.01487298,0.00036741,55]
[341178695,1730544350478,-26259.55,0.000368,30]
[341178696,1730544350502,-2399.94,0.000368,30]
[341178697,1730544350526,-3627.34,0.000368,30]
[341178698,1730544350555,-2347.52,0.000368,30]
[341178699,1730544350585,-1962.68,0.000368,30]
[341178700,1730544350613,-1000.0,0.000368,60]
[341178701,1730544350639,-5084.44,0.00036849,120]
[341178702,1730544350666,-10012.89240671,0.00037,30]
[341178703,1730544350693,-69636.63502723,0.00037,120]
[341178704,1730544350720,-1000.0,0.00037,120]
[341178705,1730544350745,-33200.92053028,0.00037,60]
[341178706,1730544350773,-167.98,0.000373,31]
[341178707,1730544350800,-167.98,0.000373,31]
[341178708,1730544350827,-167.98,0.000373,31]
[341178709,1730544350855,-167.98,0.000373,31]
[341178710,1730544350886,-167.98,0.000373,31]
[341178711,1730544350915,-167.98,0.000373,31]
[341178712,1730544351067,-13554.15503273,0.00037384,120]
[341178713,1730544351100,-1778.23842283,0.00037384,120]
[341178714,1730544351125,-5000.0,0.000374,60]
[341178715,1730544351358,-30089.0,0.000374,43]
[341178716,1730544351383,-151.0,0.00037452,120]
[341178717,1730544351407,-600.0,0.0003749,60]
[341178718,1730544351430,-600.0,0.0003749,30]
[341178719,1730544351455,-742031.81531825,0.000375,60]
[341178720,1730544359835,-673113.92344759,0.000375,60]
[341178721,1730544359860,-490825.12625067,0.000375,60]
[341178722,1730544359885,-836060.95030174,0.000375,60]
[341178723,1730544363360,-1709660.5410192,0.000375,60]
[341178724,1730544363384,-153342.12279876,0.000375,60]
[341178725,1730544363409,-102790.39420634,0.000375,60]
[341178726,1730544363433,-34206.9419757,0.000375,60]
[341178727,1730544380588,-4237.03,0.00033972,120]
[341178728,1730544380614,-1768.01,0.000346,30]
[341178729,1730544380640,-3301.08,0.000346,30]
[341178730,1730544380664,-2211.99,0.000346,30]
[341178731,1730544380688,-2113.72,0.000346,30]
[341178732,1730544380711,-23687.28,0.000346,30]
[341178733,1730544380738,-4237.03,0.00034931,120]
[341178734,1730544380765,-4237.03,0.0003589,120]
[341178735,1730544380792,-4237.03,0.00036849,120]
[341178736,1730544380818,-1768.01,0.00037,30]
[341178737,1730544380842,-3301.08,0.00037,30]
[341178738,1730544380866,-2211.99,0.00037,30]
[341178739,1730544380891,-2113.72,0.00037,30]
[341178740,1730544380915,-23687.28,0.00037,30]
[341178741,1730544380940,-84102.09694738,0.000375,60]
[341178742,1730544380964,-345345.00000017,0.000375,60]
[341178743,1730544380992,-150.0,0.000375,112]
[341178744,1730544381016,-999.0,0.00037753,120]
[341178745,1730544381042,-4237.03,0.00037808,120]
[341178746,1730544381068,-151.0,0.00037945,120]
[341178747,1730544381100,-216090.17415671,0.00038,30]
[341178748,1730544381126,-4237.03,0.00038767,120]
[341178749,1730544381154,-10484.55053736,0.000389,120]
[341178750,1730544381181,-1000.0,0.00039,120]
[341178751,1730544381207,-6473.49085751,0.000392,120]
[341178752,1730544381235,-1768.01,0.000393,30]
[341178753,1730544381264,-151.0,0.00039315,120]
[341178754,1730544381291,-3301.08,0.000394,30]
[341178755,1730544381315,-2211.99,0.000394,30]
[341178756,1730544381340,-2113.72,0.000394,30]
[341178757,1730544381366,-23687.28,0.000394,30]
[341178758,1730544381391,-151.0,0.00039534,120]
[341178759,1730544381415,-3069.4692487,0.000397,30]
[341178760,1730544381442,-4237.03,0.00039726,120]
[341178761,1730544381465,-102154.98414585,0.000398,120]
[341178762,1730544381599,-95895.34288636,0.0003988,30]
[341178763,1730544381624,-205062.47557467,0.0003999,120]
[341178764,1730544381649,-106166.46177172,0.0003999,120]
[341178765,1730544381674,-156883.12348689,0.0003999,120]
[341178766,1730544381697,-59462.54340863,0.0003999,120]
[341178767,1730544381721,-470.63837546,0.00039999,31]
[341178768,1730544381746,-438.4635408,0.00039999,31]
[341178769,1730544381771,-505.23622184,0.00039999,31]
[341178770,1730544381798,-536.52760408,0.00039999,31]
[341178771,1730544381823,-500.0,0.00039999,31]
[341178772,1730544381847,-510.97244412,0.00039999,31]
[341178773,1730544381872,-500.0,0.00039999,31]
[341178774,1730544381897,-504.27830196,0.00039999,31]
[341178775,1730544381923,-500.0,0.00039999,31]
[341178776,1730544381946,-260.90309098,0.00039999,31]
[341178777,1730544381971,-247.09265069,0.00039999,31]
[341178778,1730544381998,-500.0,0.00039999,31]
[341178779,1730544382024,-500.0,0.00039999,31]
[341178780,1730544382048,-500.0,0.00039999,31]
[341178781,1730544382074,-500.0,0.0004,30]
[341178782,1730544382099,-500.0,0.0004,120]
[341178783,1730544382123,-1002.0,0.0004,120]
[341178784,1730544382149,-1600.0,0.0004,60]
[341178785,1730544382172,-223.36964286,0.0004,120]
[341178786,1730544382198,-20000.0,0.0004,120]
[341178787,1730544382225,-250.0,0.0004,60]
[341178788,1730544382260,-2500.0,0.0004,30]
[341178789,1730544382291,-4999.999999,0.0004,30]
[341178790,1730544382317,-2000.0,0.0004,30]
[341178791,1730544382341,-2000.0,0.0004,30]
[341178792,1730544382367,-2000.0,0.0004,30]
[341178793,1730544382392,-2000.0,0.0004,30]